[Event "FIDE World Rapid-ch Open 2018"]
[White "Melkumyan, Hrant"]
[Black "Sokolin, Leonid"]
[Site "St. Petersburg"]
[Round "13.50"]
[Annotator "ChessBase"]
[Result "1-0"]
[Date "2018.12.28"]
[WhiteElo "2670"]
[BlackElo "2508"]
[PlyCount "159"]
[TimeControl "900+10"]

1. e4 {[%emt 0:0:0]} e6 {[%emt 0:0:0]} 2. d4 {[%emt 0:0:0]} d5 {[%emt 0:0:0]} 3. Bd3 {[%emt 0:0:0]} dxe4 {[%emt 0:0:4]} 4. Bxe4 {[%emt 0:0:0]} Nf6 {[%emt 0:0:6]} 5. Bf3 {[%emt 0:0:0]} Nbd7 {[%emt 0:0:9]} 6. Nc3 {[%emt 0:0:55]
} Bb4 {[%emt 0:0:48]} 7. Nge2 {[%emt 0:0:5]} e5 {[%emt 0:0:0]} 8. 0-0 {[%emt 0:1:36]} 0-0 {[%emt 0:0:47]} 9. Bg5 {[%emt 0:0:11]} Be7 {[%emt 0:1:31]
} 10. Ng3 {[%emt 0:1:3]} h6 {[%emt 0:0:54]} 11. Be3 {[%emt 0:0:0]} Re8 {[%emt 0:0:24]} 12. Re1 {[%emt 0:1:42]} Bb4 {[%emt 0:0:35]} 13. Qd3 {[%emt 0:1:39]} c6 {[%emt 0:0:48]} 14. a3 {[%emt 0:1:14]} Bxc3 {[%emt 0:0:0]} 15. bxc3 {[%emt 0:0:26]} Qa5 {[%emt 0:0:37]} 16. Bd2 {[%emt 0:0:27]} Qc7 {[%emt 0:3:40]} 17. h3 {[%emt 0:1:1]} b6 {[%emt 0:0:20]} 18. Ne4 {[%emt 0:2:1]
} Nxe4 {[%emt 0:0:34]} 19. Bxe4 {[%emt 0:0:1]} Bb7 {[%emt 0:0:0]} 20. Qg3 {[%emt 0:0:44]} Kh8 {[%emt 0:0:42]} 21. Bf5 {[%emt 0:1:23]} Rad8 {[%emt 0:0:35]} 22. Re4 {[%emt 0:0:21]} Qd6 {[%emt 0:0:39]} 23. Rh4 {[%emt 0:0:18]
} Qf6 {[%emt 0:0:12]} 24. Be4 {[%emt 0:0:42]} exd4 {[%emt 0:0:0]} 25. Bg5 {[%emt 0:0:15]} Qe5 {[%emt 0:0:20]} 26. Bxd8 {[%emt 0:0:42]} Qxg3 {[%emt 0:0:1]} 27. fxg3 {[%emt 0:0:3]} Rxd8 {[%emt 0:0:0]} 28. cxd4 {[%emt 0:0:8]} Nf6 {[%emt 0:0:5]} 29. Rf4 {[%emt 0:0:29]} Rxd4 {[%emt 0:0:0]} 30. Bf3 {[%emt 0:0:10]} Rd2 {[%emt 0:0:4]} 31. Re1 {[%emt 0:0:7]} Rd7 {[%emt 0:1:2]} 32. Ra4 {[%emt 0:0:37]} a6 {[%emt 0:0:7]} 33. c3 {[%emt 0:0:16]
} b5 {[%emt 0:0:27]} 34. Rd4 Rc7 35. Rd8+ {[%emt 0:0:24]} Kh7 {[%emt 0:0:11]
} 36. Rb8 {[%emt 0:0:27]} g6 {[%emt 0:0:3]} 37. c4 {[%emt 0:0:0]} bxc4 {[%emt 0:0:19]} 38. Rc1 {[%emt 0:0:59]} Nd7 39. Rd8 {[%emt 0:0:0]} Ne5 {[%emt 0:0:16]} 40. Be2 {[%emt 0:0:8]} c5 {[%emt 0:0:25]} 41. Bxc4 {[%emt 0:0:3]} Kg7 {[%emt 0:0:7]} 42. Rd6 {[%emt 0:0:9]} a5 {[%emt 0:0:0]} 43. Bd5 {[%emt 0:0:19]} Bc8 {[%emt 0:0:9]} 44. Kh2 {[%emt 0:0:22]} c4 {[%emt 0:0:11]} 45. Rc3 {[%emt 0:0:1]} Rc5 {[%emt 0:0:4]} 46. g4 {[%emt 0:0:0]} Kf8 {[%emt 0:0:8]} 47. Be4 {[%emt 0:0:12]} Be6 {[%emt 0:0:0]} 48. Rb6 {[%emt 0:0:6]} Ke7 {[%emt 0:0:9]} 49. Kg3 {[%emt 0:0:1]} Nd7 {[%emt 0:0:23]
} 50. Ra6 {[%emt 0:0:15]} Kf6 {[%emt 0:0:3]} 51. Kf4 g5+ 52. Ke3 {[%emt 0:0:7]} Ke5 {[%emt 0:0:0]} 53. Bf3 {[%emt 0:0:14]} Nf6 {[%emt 0:0:3]
} 54. Kd2 {[%emt 0:0:24]} Kd4 {[%emt 0:1:16]} 55. Rd6+ {[%emt 0:0:14]
} Nd5 {[%emt 0:0:2]} 56. Bxd5 {[%emt 0:0:7]} Bxd5 {[%emt 0:0:0]} 57. a4 {[%emt 0:0:7]} Rc7 {[%emt 0:0:36]} 58. Rd8 {[%emt 0:0:5]} Rb7 {[%emt 0:0:9]} 59. Rf3 {[%emt 0:0:5]} Rb2+ {[%emt 0:0:13]} 60. Kc1 {[%emt 0:0:1]
} Re2 {[%emt 0:0:38]} 61. Rf5 {[%emt 0:0:11]} Re5 {[%emt 0:0:0]} 62. Rxe5 Kxe5 {[%emt 0:0:1]} 63. Rh8 {[%emt 0:0:38]} Bxg2 {[%emt 0:0:0]} 64. Rxh6 f6 65. h4 {[%emt 0:0:14]} gxh4 {[%emt 0:1:1]} 66. Rxh4 {[%emt 0:0:2]
} Kf4 {[%emt 0:0:24]} 67. g5+ {[%emt 0:0:23]} Kxg5 {[%emt 0:0:0]} 68. Rxc4 {[%emt 0:0:1]} f5 {[%emt 0:0:2]} 69. Kd2 {[%emt 0:0:1]} f4 {[%emt 0:0:20]} 70. Rc5+ {[%emt 0:0:3]} Kg4 {[%emt 0:0:0]} 71. Rxa5 {[%emt 0:0:5]
} Kg3 {[%emt 0:0:8]} 72. Rg5+ {[%emt 0:0:6]} Kf2 {[%emt 0:0:0]} 73. a5 {[%emt 0:0:2]} Bf1 {[%emt 0:0:10]} 74. Rg6 {[%emt 0:0:6]} f3 {[%emt 0:0:32]
} 75. a6 {[%emt 0:0:2]} Bc4 {[%emt 0:0:7]} 76. a7 {[%emt 0:0:0]} Bd5 {[%emt 0:0:0]} 77. Rg8 {[%emt 0:0:11]} Kf1 {[%emt 0:0:31]} 78. a8=Q {[%emt 0:0:3]} Bxa8 {[%emt 0:0:1]} 79. Rxa8 {[%emt 0:0:3]} f2 {[%emt 0:0:1]
} 80. Rf8 {[%emt 0:0:3]} 1-0

[Event "FIDE World Rapid-ch Open 2018"]
[White "Predke, Alexandr"]
[Black "Najer, Evgeniy"]
[Site "St. Petersburg"]
[Round "13.51"]
[Annotator "ChessBase"]
[Result "1-0"]
[Date "2018.12.28"]
[WhiteElo "2622"]
[BlackElo "2670"]
[PlyCount "129"]
[TimeControl "900+10"]

1. e4 {[%emt 0:0:0]} c5 {[%emt 0:0:0]} 2. Nc3 {[%emt 0:0:0]} d6 {[%emt 0:0:0]} 3. Nge2 {[%emt 0:0:0]} Nf6 {[%emt 0:0:16]} 4. g3 {[%emt 0:0:2]} g6 {[%emt 0:0:11]} 5. Bg2 {[%emt 0:0:2]} Bg7 {[%emt 0:0:3]} 6. 0-0 {[%emt 0:0:0]} Nc6 {[%emt 0:0:3]} 7. d3 {[%emt 0:0:2]} 0-0 {[%emt 0:0:20]} 8. f4 {[%emt 0:0:4]} Rb8 {[%emt 0:0:17]} 9. h3 {[%emt 0:0:6]} Ne8 {[%emt 0:0:0]} 10. a4 {[%emt 0:0:24]} f5 {[%emt 0:0:40]} 11. Be3 {[%emt 0:0:14]} Nd4 {[%emt 0:0:9]
} 12. Bf2 {[%emt 0:1:38]} Nxe2+ {[%emt 0:4:10]} 13. Qxe2 {[%emt 0:0:9]
} Nc7 {[%emt 0:0:2]} 14. exf5 {[%emt 0:1:26]} gxf5 {[%emt 0:0:0]} 15. Rae1 {[%emt 0:0:6]} e6 {[%emt 0:0:30]} 16. Kh2 {[%emt 0:3:34]} Bd7 {[%emt 0:0:12]} 17. Qd2 {[%emt 0:0:10]} Bc6 {[%emt 0:0:31]} 18. d4 {[%emt 0:0:21]
} Bxg2 {[%emt 0:0:10]} 19. Kxg2 {[%emt 0:0:3]} b6 {[%emt 0:0:0]} 20. Nb5 {[%emt 0:0:32]} Re8 {[%emt 0:0:45]} 21. Nxa7 {[%emt 0:0:53]} Ra8 {[%emt 0:2:2]} 22. dxc5 {[%emt 0:1:12]} dxc5 {[%emt 0:0:1]} 23. Qxd8 {[%emt 0:0:2]
} Rexd8 {[%emt 0:0:1]} 24. Nb5 {[%emt 0:0:2]} Nxb5 {[%emt 0:0:0]} 25. axb5 {[%emt 0:0:2]} Kf7 {[%emt 0:0:2]} 26. g4 {[%emt 0:3:15]} Rd2 {[%emt 0:0:33]} 27. Kf3 {[%emt 0:3:5]} Rxc2 {[%emt 0:0:30]} 28. Rd1 {[%emt 0:0:1]
} fxg4+ {[%emt 0:1:41]} 29. Kxg4 {[%emt 0:0:22]} Ra7 {[%emt 0:0:0]} 30. Rd6 {[%emt 0:0:22]} Rb7 {[%emt 0:0:2]} 31. Bh4 {[%emt 0:0:10]} Rc4 {[%emt 0:2:40]} 32. Kh5 {[%emt 0:0:25]} Rd4 {[%emt 0:0:16]} 33. Rxd4 {[%emt 0:1:23]
} cxd4 {[%emt 0:0:1]} 34. Rd1 {[%emt 0:0:11]} Rc7 {[%emt 0:0:0]} 35. b4 {[%emt 0:0:5]} Rd7 {[%emt 0:0:27]} 36. Kg4 {[%emt 0:0:2]} Rd5 {[%emt 0:0:9]} 37. Kf3 {[%emt 0:0:16]} Rxb5 {[%emt 0:0:3]} 38. Be1 {[%emt 0:0:9]
} Rh5 {[%emt 0:0:8]} 39. h4 {[%emt 0:0:7]} Rd5 {[%emt 0:0:0]} 40. Ke4 {[%emt 0:0:2]} Kg6 {[%emt 0:0:20]} 41. Rd3 {[%emt 0:0:8]} Kh5 {[%emt 0:0:12]} 42. Ra3 {[%emt 0:0:2]} d3 {[%emt 0:1:17]} 43. Bd2 {[%emt 0:0:0]} Bf6 {[%emt 0:0:11]} 44. Ra6 {[%emt 0:0:2]} Rd4+ {[%emt 0:0:4]} 45. Ke3 {[%emt 0:0:4]} Rd6 {[%emt 0:0:1]} 46. b5 {[%emt 0:0:41]} Bd8 {[%emt 0:0:0]} 47. Ke4 {[%emt 0:0:15]} Bxh4 {[%emt 0:0:19]} 48. Ke5 {[%emt 0:0:14]} Be7 {[%emt 0:0:4]} 49. Ra7 {[%emt 0:0:8]} Bf8 {[%emt 0:0:12]} 50. Ra8 {[%emt 0:0:13]
} Be7 {[%emt 0:0:12]} 51. Re8 {[%emt 0:0:1]} Rd5+ {[%emt 0:0:0]} 52. Kxe6 {[%emt 0:0:3]} Bb4 {[%emt 0:0:11]} 53. Kxd5 {[%emt 0:0:27]} Bxd2 {[%emt 0:0:1]} 54. Ke4 {[%emt 0:0:6]} Bc1 {[%emt 0:0:2]} 55. Kxd3 {[%emt 0:0:24]
} Bxf4 {[%emt 0:0:1]} 56. Re6 {[%emt 0:0:1]} Kg4 {[%emt 0:0:0]} 57. Rxb6 {[%emt 0:0:8]} h5 {[%emt 0:0:1]} 58. Rg6+ {[%emt 0:0:24]} Kf5 {[%emt 0:0:12]} 59. Rg8 {[%emt 0:0:3]} h4 {[%emt 0:0:0]} 60. Ke2 {[%emt 0:0:5]
} Ke4 {[%emt 0:0:15]} 61. b6 {[%emt 0:0:14]} h3 {[%emt 0:0:1]
} 62. Kf1 {[%emt 0:0:1]} Kf3 {[%emt 0:0:11]} 63. Rf8 {[%emt 0:0:9]} h2 {[%emt 0:0:7]
} 64. Rxf4+ {[%emt 0:0:3]} Kg3 {[%emt 0:0:9]} 65. Rh4 {[%emt 0:0:4]
} 1-0

[Event "FIDE World Rapid-ch Open 2018"]
[White "Belyakov, Bogdan"]
[Black "Yudin, Sergei"]
[Site "St. Petersburg"]
[Round "13.52"]
[Annotator "ChessBase"]
[Result "0-1"]
[Date "2018.12.28"]
[WhiteElo "2459"]
[BlackElo "2507"]
[PlyCount "84"]
[TimeControl "900+10"]

1. e4 {[%emt 0:0:0]} d6 {[%emt 0:0:0]} 2. d4 {[%emt 0:0:0]} Nf6 {[%emt 0:0:0]} 3. Nc3 {[%emt 0:0:0]} e5 {[%emt 0:0:0]} 4. Nf3 {[%emt 0:0:2]} Nbd7 {[%emt 0:0:0]} 5. Bc4 {[%emt 0:0:8]} Be7 {[%emt 0:0:0]} 6. 0-0 {[%emt 0:0:8]
} 0-0 {[%emt 0:0:1]} 7. Re1 {[%emt 0:0:4]} c6 {[%emt 0:0:2]
} 8. a4 {[%emt 0:0:2]} h6 {[%emt 0:0:2]} 9. h3 {[%emt 0:0:9]} Re8 {[%emt 0:0:3]
} 10. Bf1 {[%emt 0:0:12]} exd4 {[%emt 0:0:33]} 11. Nxd4 {[%emt 0:0:2]
} Bf8 {[%emt 0:0:1]} 12. f4 {[%emt 0:1:54]} Nc5 {[%emt 0:0:0]} 13. Qf3 {[%emt 0:0:41]} a5 {[%emt 0:1:55]} 14. Kh1 {[%emt 0:0:37]} Qb6 {[%emt 0:1:48]} 15. e5 {[%emt 0:1:28]} Nfd7 {[%emt 0:2:17]} 16. Qg3 {[%emt 0:2:3]
} Kh8 {[%emt 0:5:55]} 17. Nf3 {[%emt 0:1:41]} dxe5 {[%emt 0:0:0]} 18. fxe5 {[%emt 0:0:9]} Nb8 {[%emt 0:0:3]} 19. b3 {[%emt 0:2:45]} Nba6 {[%emt 0:0:24]} 20. Be3 {[%emt 0:0:34]} Qc7 {[%emt 0:0:13]} 21. Qf2 {[%emt 0:0:15]
} b6 {[%emt 0:0:13]} 22. Bc4 {[%emt 0:0:10]} Be6 {[%emt 0:0:0]} 23. Bf1 {[%emt 0:0:24]} Nb4 {[%emt 0:0:12]} 24. Rad1 {[%emt 0:0:31]} Nd5 {[%emt 0:0:33]} 25. Bd4 {[%emt 0:0:38]} Rad8 {[%emt 0:0:53]} 26. Qh4 {[%emt 0:1:6]
} Be7 {[%emt 0:0:13]} 27. Qg3 {[%emt 0:0:25]} Nxc3 {[%emt 0:0:0]} 28. Bxc3 {[%emt 0:0:3]} Ne4 {[%emt 0:0:16]} 29. Rxe4 {[%emt 0:0:38]} Rxd1 {[%emt 0:0:2]} 30. Re1 {[%emt 0:0:5]} Red8 {[%emt 0:0:7]} 31. Bd3 {[%emt 0:0:5]
} R1xd3 {[%emt 0:0:13]} 32. cxd3 {[%emt 0:0:4]} Rxd3 {[%emt 0:0:0]} 33. Bd2 {[%emt 0:0:37]} Qd7 {[%emt 0:0:13]} 34. Qf2 {[%emt 0:0:57]} Bc5 {[%emt 0:0:46]} 35. Be3 {[%emt 0:0:2]} Bb4 {[%emt 0:0:16]} 36. Re2 {[%emt 0:0:21]
} c5 {[%emt 0:0:3]} 37. Qh4 {[%emt 0:0:11]} Kg8 {[%emt 0:0:0]} 38. Kh2 {[%emt 0:0:26]} Qd8 {[%emt 0:0:11]} 39. Bg5 {[%emt 0:0:12]} hxg5 {[%emt 0:0:6]} 40. Nxg5 {[%emt 0:0:1]} Bf5 {[%emt 0:0:3]} 41. Rf2 {[%emt 0:0:10]
} Be1 {[%emt 0:0:21]} 42. Qf4 {[%emt 0:0:14]} Bxf2 {[%emt 0:0:0]} 0-1

[Event "FIDE World Rapid-ch Open 2018"]
[White "Vitiugov, Nikita"]
[Black "Vastrukhin, Oleg"]
[Site "St. Petersburg"]
[Round "13.53"]
[Annotator "ChessBase"]
[Result "1/2-1/2"]
[Date "2018.12.28"]
[WhiteElo "2719"]
[BlackElo "2413"]
[PlyCount "101"]
[TimeControl "900+10"]

1. e4 {[%emt 0:0:1]} e6 {[%emt 0:0:2]} 2. d4 {[%emt 0:0:4]} d5 {[%emt 0:0:0]} 3. e5 {[%emt 0:0:6]} c5 {[%emt 0:0:2]} 4. c3 {[%emt 0:0:2]} Bd7 {[%emt 0:0:2]
} 5. Nf3 {[%emt 0:0:15]} Qb6 {[%emt 0:0:2]} 6. a3 {[%emt 0:0:0]} Nc6 {[%emt 0:0:10]} 7. b4 {[%emt 0:0:8]} c4 {[%emt 0:0:2]} 8. a4 {[%emt 0:0:27]
} f5 {[%emt 0:0:10]} 9. Be2 {[%emt 0:0:33]} Nh6 {[%emt 0:0:32]
} 10. Bxh6 {[%emt 0:0:15]} gxh6 {[%emt 0:0:2]} 11. 0-0 {[%emt 0:0:8]} 0-0-0 {[%emt 0:0:47]} 12. Na3 {[%emt 0:0:29]} Rg8 {[%emt 0:0:6]} 13. Qd2 {[%emt 0:2:45]
} Be8 {[%emt 0:1:24]} 14. Kh1 {[%emt 0:0:27]} Qc7 {[%emt 0:0:0]} 15. Nc2 {[%emt 0:0:27]} Qg7 {[%emt 0:1:7]} 16. Rg1 {[%emt 0:0:5]} Be7 {[%emt 0:0:2]} 17. a5 {[%emt 0:0:22]} a6 {[%emt 0:0:49]} 18. Qe1 {[%emt 0:0:0]} Na7 {[%emt 0:0:9]} 19. Ne3 {[%emt 0:0:13]} Kb8 {[%emt 0:0:33]} 20. g3 {[%emt 0:0:29]} Nb5 {[%emt 0:0:37]} 21. Ng2 {[%emt 0:0:7]} Bh5 {[%emt 0:0:0]} 22. Nf4 {[%emt 0:0:10]} Qf7 {[%emt 0:0:3]} 23. Nd2 {[%emt 0:1:34]} Bxe2 {[%emt 0:1:13]} 24. Nxe2 {[%emt 0:0:2]} f4 {[%emt 0:1:8]} 25. gxf4 {[%emt 0:0:17]
} Rxg1+ {[%emt 0:0:10]} 26. Qxg1 {[%emt 0:0:10]} Rg8 {[%emt 0:0:0]} 27. Qb1 {[%emt 0:1:3]} Bh4 {[%emt 0:1:28]} 28. f5 {[%emt 0:1:13]} Qh5 {[%emt 0:2:3]} 29. Nf4 {[%emt 0:0:21]} Qg5 {[%emt 0:0:20]} 30. Qg1 {[%emt 0:0:3]
} Qd8 {[%emt 0:1:17]} 31. Qf1 {[%emt 0:0:54]} Qg5 {[%emt 0:0:0]} 32. Qg2 {[%emt 0:1:7]} exf5 {[%emt 0:1:27]} 33. Nf3 {[%emt 0:0:27]} Qd8 {[%emt 0:0:26]} 34. Qh3 {[%emt 0:0:16]} Bxf2 {[%emt 0:0:5]} 35. Ne2 {[%emt 0:1:19]
} Rg4 {[%emt 0:0:30]} 36. Rf1 {[%emt 0:0:29]} Be3 {[%emt 0:0:0]} 37. Ng3 {[%emt 0:0:15]} Qc8 {[%emt 0:1:4]} 38. Qh5 {[%emt 0:0:43]} f4 {[%emt 0:0:17]} 39. Nf5 {[%emt 0:0:3]} Rg5 {[%emt 0:0:13]} 40. Nxg5 {[%emt 0:0:6]
} Qxf5 {[%emt 0:0:2]} 41. Qxh6 {[%emt 0:0:13]} f3 {[%emt 0:0:0]} 42. h4 {[%emt 0:1:8]} f2 {[%emt 0:0:5]} 43. Qf6 {[%emt 0:0:11]} Qg4 {[%emt 0:0:21]
} 44. Rxf2 {[%emt 0:0:41]} Qxh4+ {[%emt 0:0:6]} 45. Rh2 {[%emt 0:0:10]
} Qxg5 {[%emt 0:0:18]} 46. Qf8+ {[%emt 0:0:2]} Ka7 {[%emt 0:0:0]} 47. Qc5+ {[%emt 0:0:1]} Kb8 {[%emt 0:0:3]} 48. Qf8+ {[%emt 0:0:2]
} Ka7 {[%emt 0:0:3]} 49. Qc5+ {[%emt 0:0:2]} Kb8 {[%emt 0:0:20]} 50. Qf8+ {[%emt 0:0:1]} Ka7 {[%emt 0:0:4]} 51. Qc5+ {[%emt 0:0:2]} 1/2-1/2

[Event "FIDE World Rapid-ch Open 2018"]
[White "Tukhaev, Adam"]
[Black "Adly, Ahmed"]
[Site "St. Petersburg"]
[Round "13.54"]
[Annotator "ChessBase"]
[Result "1/2-1/2"]
[Date "2018.12.28"]
[WhiteElo "2527"]
[BlackElo "2626"]
[PlyCount "128"]
[TimeControl "900+10"]

1. e4 {[%emt 0:0:29]} b6 {[%emt 0:0:0]} 2. d4 {[%emt 0:0:10]} Bb7 {[%emt 0:0:0]} 3. Bd3 {[%emt 0:0:5]} g6 {[%emt 0:0:0]} 4. Nf3 {[%emt 0:0:11]} Bg7 {[%emt 0:0:0]} 5. 0-0 {[%emt 0:0:7]} d6 {[%emt 0:0:0]} 6. Re1 {[%emt 0:0:0]} e6 {[%emt 0:0:0]} 7. Nbd2 {[%emt 0:0:2]} Nd7 {[%emt 0:0:2]} 8. Nf1 {[%emt 0:0:2]} Ne7 {[%emt 0:0:7]} 9. Ng3 {[%emt 0:0:5]} 0-0 {[%emt 0:0:0]} 10. c3 {[%emt 0:0:17]} c5 {[%emt 0:0:29]} 11. Be3 {[%emt 0:0:44]} Rc8 {[%emt 0:0:17]} 12. Qd2 {[%emt 0:0:7]} cxd4 {[%emt 0:0:44]} 13. cxd4 {[%emt 0:0:5]
} Nc6 {[%emt 0:0:2]} 14. Bg5 {[%emt 0:2:43]} Qc7 {[%emt 0:0:0]} 15. Rac1 {[%emt 0:0:2]} Qb8 {[%emt 0:0:2]} 16. Bh6 {[%emt 0:0:9]} Ne7 {[%emt 0:0:59]} 17. Qg5 {[%emt 0:2:0]} Bf6 {[%emt 0:1:12]} 18. Qg4 {[%emt 0:0:47]
} Rxc1 {[%emt 0:0:13]} 19. Rxc1 {[%emt 0:0:1]} Rc8 {[%emt 0:0:0]} 20. Rd1 {[%emt 0:0:3]} Nc6 {[%emt 0:1:6]} 21. Ne2 {[%emt 0:2:29]} Rc7 {[%emt 0:1:7]} 22. h4 {[%emt 0:0:7]} Bh8 {[%emt 0:0:21]} 23. Qg3 {[%emt 0:1:12]
} e5 {[%emt 0:1:19]} 24. h5 {[%emt 0:0:2]} Nf6 {[%emt 0:0:47]
} 25. hxg6 {[%emt 0:0:3]} hxg6 {[%emt 0:0:3]} 26. Bc4 {[%emt 0:1:42]} Ne7 {[%emt 0:1:5]} 27. dxe5 {[%emt 0:0:1]} Nxe4 {[%emt 0:1:50]} 28. Bxf7+ {[%emt 0:0:20]
} Kxf7 {[%emt 0:0:1]} 29. Ng5+ {[%emt 0:0:6]} Nxg5 {[%emt 0:0:0]} 30. exd6 {[%emt 0:0:2]} Rd7 {[%emt 0:0:27]} 31. Bxg5 {[%emt 0:0:1]
} Nd5 {[%emt 0:0:34]} 32. Qf3+ {[%emt 0:1:6]} Kg8 {[%emt 0:0:2]} 33. Rxd5 {[%emt 0:0:39]} Rxd6 {[%emt 0:0:8]} 34. Bf4 {[%emt 0:0:20]} Bxd5 {[%emt 0:0:0]} 35. Qa3 {[%emt 0:0:16]} Qe8 {[%emt 0:1:59]} 36. Qxd6 {[%emt 0:0:2]} Bxa2 {[%emt 0:0:3]} 37. Nd4 {[%emt 0:0:44]} Bf7 {[%emt 0:0:13]} 38. b4 {[%emt 0:0:45]
} Qe1+ {[%emt 0:0:18]} 39. Kh2 {[%emt 0:0:1]} Qxf2 {[%emt 0:0:0]} 40. Qd8+ {[%emt 0:0:16]} Kh7 {[%emt 0:0:8]} 41. Nf3 {[%emt 0:0:3]} Ba1 {[%emt 0:0:39]} 42. Qe7 {[%emt 0:0:39]} Kg8 {[%emt 0:0:25]} 43. Qxa7 {[%emt 0:0:8]
} Bf6 {[%emt 0:0:18]} 44. Qb8+ {[%emt 0:0:11]} Kh7 {[%emt 0:0:0]} 45. Qc7 {[%emt 0:0:5]} Kg8 {[%emt 0:0:3]} 46. Qb8+ {[%emt 0:0:9]} Kg7 {[%emt 0:0:6]} 47. Be5 {[%emt 0:0:22]} Qe3 {[%emt 0:0:1]} 48. Bxf6+ Kxf6 {[%emt 0:0:1]} 49. Qd6+ {[%emt 0:0:7]} Kf5 {[%emt 0:0:16]} 50. Kg3 {[%emt 0:0:11]
} g5 {[%emt 0:0:18]} 51. Qd7+ {[%emt 0:0:9]} Kg6 {[%emt 0:0:0]} 52. Qc6+ {[%emt 0:0:40]} Kh5 {[%emt 0:0:6]} 53. Qf6 {[%emt 0:0:7]} Bd5 {[%emt 0:0:29]} 54. Qf5 {[%emt 0:0:29]} Be4 {[%emt 0:0:1]} 55. Qg4+ {[%emt 0:0:4]
} Kh6 {[%emt 0:0:4]} 56. Qe6+ {[%emt 0:0:2]} Kg7 {[%emt 0:0:0]} 57. Qe5+ {[%emt 0:0:6]} Kg6 {[%emt 0:0:3]} 58. Qe6+ {[%emt 0:0:1]} Kg7 {[%emt 0:0:1]} 59. Qe7+ {[%emt 0:0:3]} Kg6 {[%emt 0:0:2]} 60. Qe8+ {[%emt 0:0:5]
} Kf6 {[%emt 0:0:34]} 61. Qe5+ {[%emt 0:0:3]} Kg6 {[%emt 0:0:0]} 62. Qe6+ {[%emt 0:0:5]} Kg7 {[%emt 0:0:2]} 63. Qd7+ {[%emt 0:0:26]} Kh6 {[%emt 0:0:7]} 64. Qe6+ {[%emt 0:0:11]} Kg7 {[%emt 0:0:5]} 1/2-1/2

[Event "FIDE World Rapid-ch Open 2018"]
[White "Kryakvin, Dmitry"]
[Black "Frolyanov, Dmitry"]
[Site "St. Petersburg"]
[Round "13.55"]
[Annotator "ChessBase"]
[Result "1-0"]
[Date "2018.12.28"]
[WhiteElo "2588"]
[BlackElo "2517"]
[PlyCount "61"]
[TimeControl "900+10"]

1. d4 {[%emt 0:0:0]} d5 {[%emt 0:0:0]} 2. c4 {[%emt 0:0:0]} e6 {[%emt 0:0:0]} 3. Nf3 {[%emt 0:0:0]} Nf6 {[%emt 0:0:0]} 4. Bg5 {[%emt 0:0:0]} dxc4 {[%emt 0:0:0]} 5. Qa4+ {[%emt 0:0:4]} c6 {[%emt 0:0:11]} 6. Qxc4 {[%emt 0:0:4]
} b5 {[%emt 0:0:8]} 7. Qc2 {[%emt 0:0:7]} Bb7 {[%emt 0:0:3]
} 8. e4 {[%emt 0:0:20]} h6 {[%emt 0:0:9]} 9. Bxf6 {[%emt 0:0:26]} Qxf6 {[%emt 0:0:4]
} 10. Bd3 {[%emt 0:0:16]} Nd7 {[%emt 0:0:47]} 11. 0-0 {[%emt 0:0:0]} e5 {[%emt 0:1:3]} 12. a4 {[%emt 0:0:13]} b4 {[%emt 0:1:39]} 13. Nbd2 {[%emt 0:1:33]} Be7 {[%emt 0:3:5]} 14. dxe5 {[%emt 0:1:18]} Nxe5 {[%emt 0:0:14]
} 15. Nxe5 {[%emt 0:0:2]} Qxe5 {[%emt 0:0:1]} 16. Ba6 {[%emt 0:0:41]
} Qc7 {[%emt 0:0:6]} 17. Bxb7 {[%emt 0:0:15]} Qxb7 {[%emt 0:0:0]} 18. Nc4 {[%emt 0:0:24]} c5 {[%emt 0:0:34]} 19. Rfd1 {[%emt 0:1:5]} 0-0 {[%emt 0:0:4]} 20. Rd5 {[%emt 0:0:9]} Bf6 {[%emt 0:1:3]} 21. Rad1 {[%emt 0:2:27]
} Bd4 {[%emt 0:1:28]} 22. Nd6 {[%emt 0:0:30]} b3 {[%emt 0:0:0]} 23. Qc4 {[%emt 0:1:57]} Qe7 {[%emt 0:0:29]} 24. Nf5 {[%emt 0:0:28]} Qxe4 {[%emt 0:0:18]} 25. Rxc5 {[%emt 0:0:34]} Rad8 {[%emt 0:5:6]} 26. Nxd4 {[%emt 0:0:12]} Rd6 {[%emt 0:0:6]} 27. g3 {[%emt 0:0:32]} Rfd8 {[%emt 0:0:0]} 28. Rc8 {[%emt 0:1:43]} Qg4 {[%emt 0:0:23]} 29. Rxd8+ {[%emt 0:0:18]} Rxd8 {[%emt 0:0:3]} 30. f3 {[%emt 0:0:32]} Qd7 {[%emt 0:0:49]} 31. Qxb3 {[%emt 0:0:9]
} 1-0

[Event "FIDE World Rapid-ch Open 2018"]
[White "Ghaem Maghami, Ehsan"]
[Black "Shaposhnikov, Evgeny"]
[Site "St. Petersburg"]
[Round "13.56"]
[Annotator "ChessBase"]
[Result "0-1"]
[Date "2018.12.28"]
[WhiteElo "2537"]
[BlackElo "2576"]
[PlyCount "66"]
[TimeControl "900+10"]

1. d4 {[%emt 0:0:0]} Nf6 {[%emt 0:0:0]} 2. Nf3 {[%emt 0:0:0]} e6 {[%emt 0:0:0]
} 3. c4 {[%emt 0:0:0]} b6 {[%emt 0:0:0]} 4. g3 {[%emt 0:0:0]} Bb4+ {[%emt 0:0:0]} 5. Bd2 {[%emt 0:0:2]} c5 {[%emt 0:0:0]} 6. Bg2 {[%emt 0:0:2]
} Bb7 {[%emt 0:0:2]} 7. 0-0 {[%emt 0:0:30]} 0-0 {[%emt 0:0:0]} 8. Bxb4 {[%emt 0:1:33]} cxb4 {[%emt 0:0:2]} 9. Qb3 {[%emt 0:0:2]} a5 {[%emt 0:0:5]} 10. a3 {[%emt 0:0:2]} Na6 {[%emt 0:0:5]} 11. Nbd2 {[%emt 0:1:29]
} d6 {[%emt 0:0:4]} 12. Rfd1 {[%emt 0:1:1]} Qc7 {[%emt 0:0:0]} 13. Rac1 {[%emt 0:1:9]} Rfe8 {[%emt 0:0:24]} 14. e3 {[%emt 0:0:3]} e5 {[%emt 0:0:16]} 15. Bh3 {[%emt 0:1:44]} h6 {[%emt 0:1:17]} 16. Qc2 {[%emt 0:0:0]} Rad8 {[%emt 0:0:57]} 17. Ne1 {[%emt 0:1:29]} Qe7 {[%emt 0:1:56]} 18. Nd3 {[%emt 0:0:55]} Nh7 {[%emt 0:1:48]} 19. Bg2 {[%emt 0:2:29]} Bxg2 {[%emt 0:0:7]
} 20. Kxg2 {[%emt 0:0:1]} exd4 {[%emt 0:0:57]} 21. exd4 {[%emt 0:0:5]
} Qb7+ {[%emt 0:0:4]} 22. d5 {[%emt 0:0:32]} b5 {[%emt 0:0:0]} 23. axb4 {[%emt 0:0:3]} axb4 {[%emt 0:0:25]} 24. Nb3 {[%emt 0:2:36]} Ng5 {[%emt 0:2:38]} 25. h4 {[%emt 0:0:25]} bxc4 {[%emt 0:0:7]} 26. Qxc4 {[%emt 0:0:9]
} Rc8 {[%emt 0:0:7]} 27. Qd4 {[%emt 0:0:36]} Re4 {[%emt 0:0:0]} 28. hxg5 {[%emt 0:0:47]} Rxd4 {[%emt 0:0:7]} 29. Rxc8+ {[%emt 0:0:4]} Qxc8 {[%emt 0:0:8]} 30. Nxd4 {[%emt 0:0:3]} Qc4 {[%emt 0:0:38]} 31. Nf3 {[%emt 0:0:28]
} hxg5 {[%emt 0:0:29]} 32. Nxg5 {[%emt 0:0:2]} Qxd5+ {[%emt 0:0:0]} 33. Nf3 {[%emt 0:0:3]} Nc5 {[%emt 0:0:11]} 0-1